bitfinex-derivatives/quotes_SOLF0:USTF0_20251222
["timestamp","ask_amount","ask_price","bid_price","bid_amount"]
[1766369200507,0.06025992,125.12,125.09,0.05551684]
[1766369200894,0.00025992,125.12,125.09,0.05551684]
[1766369201293,119.0791,125.18,125.09,0.05551684]
[1766369201595,111.887,125.17,125.08,3.33]
[1766369201793,111.8868,125.18,125.08,3.33]
[1766369201990,111.8986,125.16,125.04,3.33]
[1766369202197,0.06089719,125.11,125.09,0.05066666]
[1766369202397,0.05241647,125.11,125.09,0.05066666]
[1766369202799,0.05241647,125.11,125.04,3.33]
[1766369203000,111.99591647,125.11,125.03,47.26]
[1766369203204,111.9603,125.09,125.0,3.33]
[1766369203403,111.9497,125.1,124.97,112.0596]
[1766369203404,111.9339,125.12,125.01,3.33]
[1766369203601,111.9411,125.11,125.01,3.33]
[1766369203901,111.9411,125.11,124.97,47.24]
[1766369203902,112.03554912,125.07,124.97,50.57]
[1766369204102,111.9699,125.08,124.98,3.33]
[1766369204305,111.9411,125.11,124.99,3.33]
[1766369204497,111.9588,125.09,124.99,3.33]
[1766369204897,111.9588,125.09,125.03,0.05346184]
[1766369204898,0.059232,125.05,125.03,0.05346184]
[1766369205302,111.9313,125.13,125.03,0.05346184]
[1766369205610,19.10627332,125.18,125.05,3.33]
[1766369205814,119.0712,125.18,125.07,3.33]
[1766369206109,111.8986,125.16,125.04,50.57]
[1766369206309,111.8789,125.18,125.09,0.05060037]
[1766369206499,111.8602,125.2,125.07,115.3034]
[1766369206807,7.1948,125.14,125.04,47.24]
[1766369207011,111.8873,125.17,125.04,159.2416]
[1766369207315,0.05085788,125.12,125.09,0.05816229]
[1766369207605,0.05085788,125.12,125.09,0.05704938]
[1766369209506,111.8392,125.22,125.1,3.33]
[1766369209712,111.8547,125.2,125.1,3.33]
[1766369210004,111.8643,125.19,125.1,3.33]
[1766369210212,111.8506,125.2,125.1,3.33]
[1766369210507,111.8506,125.2,125.06,111.9692]
[1766369210508,111.8699,125.18,125.06,10.5281]
[1766369210713,111.8853,125.16,125.06,3.33]
[1766369211007,7.1934,125.15,125.06,3.33]
[1766369211315,111.8699,125.18,125.06,3.33]
[1766369211515,111.8506,125.2,125.07,115.2951]
[1766369211814,111.8644,125.19,125.12,0.06043664]
[1766369212004,111.867,125.18,125.07,3.33]
[1766369212306,111.867,125.18,125.04,159.228]
[1766369212307,111.8856,125.16,125.04,159.228]
[1766369212507,111.8856,125.16,125.04,162.558]
[1766369212808,159.0962,125.17,125.09,0.06116681]
[1766369213006,111.894,125.15,125.05,10.5286]
[1766369213204,111.8762,125.17,125.05,10.5286]
[1766369213412,159.0962,125.17,125.05,10.5286]
[1766369213706,111.8762,125.17,125.05,3.33]
[1766369214008,176.80152459,125.19,125.1,0.05480026]
[1766369214213,111.8797,125.17,125.07,3.33]
[1766369214398,7.1931,125.16,125.07,3.33]
[1766369215104,7.1931,125.16,125.1,0.06015624]
[1766369216112,7.1915,125.18,125.1,0.06015624]
[1766369216410,7.1915,125.18,125.13,0.05588859]
[1766369217108,7.1922,125.17,125.13,0.05588859]
[1766369217409,41.60502459,125.22,125.13,0.05588859]
[1766369217410,111.8337,125.22,125.13,0.05588859]
[1766369217602,7.19,125.21,125.16,0.05613009]
[1766369218105,7.1888,125.23,125.16,0.05613009]
[1766369218407,111.8317,125.22,125.16,0.05613009]
[1766369218707,111.8507,125.2,125.07,111.9642]
[1766369218906,111.8589,125.19,125.08,3.33]
[1766369219509,111.8691,125.18,125.08,3.33]
[1766369219709,0.05416904,125.14,125.12,0.05989057]
[1766369220321,0.05416904,125.14,125.05,115.3122]
[1766369220605,111.861,125.19,125.09,3.33]
[1766369221112,111.8223,125.23,125.11,115.2567]
[1766369221307,0.05178557,125.18,125.16,0.05382261]
[1766369221506,111.849,125.2,125.11,3.33]
[1766369222001,111.831,125.22,125.11,3.33]
[1766369222203,7.1894,125.22,125.13,7.194]
[1766369222407,111.8032,125.26,125.13,7.194]
[1766369222408,111.8032,125.26,125.14,3.33]
[1766369222613,129.50062459,125.28,125.16,0.05249563]
[1766369222807,111.8136,125.24,125.14,3.33]
[1766369223208,111.8316,125.22,125.11,47.2]
[1766369223515,7.1904,125.2,125.11,54.395]
[1766369223715,111.8437,125.21,125.14,0.0560007]
[1766369224007,7.1893,125.22,125.14,7.1934]
[1766369224509,7.1893,125.22,125.13,3.33]
[1766369224709,7.1899,125.21,125.13,3.33]
[1766369224910,0.05282937,125.18,125.16,0.06164524]
[1766369225806,0.05282937,125.18,125.11,47.2]
[1766369226318,0.05282937,125.18,125.09,3.32]
[1766369226508,111.8514,125.2,125.09,3.32]
[1766369226706,0.05302267,125.16,125.13,0.05152021]
[1766369226909,111.803,125.26,125.13,0.06041249]
[1766369227115,111.8231,125.23,125.12,3.32]
[1766369227312,159.0161,125.24,125.12,3.32]
[1766369227517,111.8512,125.2,125.08,115.2735]
[1766369227817,159.04,125.21,125.09,3.32]
[1766369228005,0.05339541,125.16,125.14,0.05467564]
[1766369228206,0.05339541,125.16,125.09,3.32]
[1766369228207,7.1917,125.18,125.09,3.32]
[1766369228407,47.2,125.21,125.09,3.32]
[1766369228606,129.50492459,125.27,125.14,115.2166]
[1766369228808,5.71091408,125.26,125.16,7.1923]
[1766369229013,158.9899,125.27,125.16,10.5123]
[1766369229319,158.9899,125.27,125.13,111.9084]
[1766369229320,7.1894,125.22,125.13,7.194]
[1766369229616,141.40434764,125.26,125.13,7.194]
[1766369229617,111.78,125.28,125.16,3.32]
[1766369229808,7.1885,125.24,125.13,231.0158]
[1766369230002,7.1885,125.24,125.13,223.8219]
[1766369230203,0.05394308,125.2,125.17,0.05801805]
[1766369230408,0.05394308,125.2,125.12,47.18]
[1766369230622,7.1909,125.19,125.12,47.18]
[1766369231004,7.1909,125.19,125.1,3.32]
[1766369231410,0.05130825,125.16,125.13,0.05740576]
[1766369231612,0.05130825,125.16,125.06,10.5178]
[1766369231807,111.8763,125.17,125.06,10.5178]
[1766369232512,111.8763,125.17,125.1,0.0602077]
[1766369232718,0.05299438,125.13,125.1,0.0602077]
[1766369233316,5.71948648,125.17,125.1,0.0602077]
[1766369233615,5.72419153,125.17,125.1,0.0602077]
[1766369233815,7.1923,125.17,125.1,0.0602077]
[1766369234206,0.05913447,125.15,125.1,0.0602077]
[1766369234411,5.72419153,125.2,125.11,0.0539791]
[1766369234605,111.822,125.24,125.12,111.9185]
[1766369234606,5.72419153,125.22,125.12,111.9185]
[1766369234812,111.822,125.24,125.12,111.9185]
[1766369234813,5.72419153,125.23,125.15,7.1928]
[1766369235016,5.73184305,125.25,125.15,115.2121]
[1766369235215,7.1864,125.27,125.17,7.1917]
[1766369235411,7.1864,125.27,125.21,0.05945445]
[1766369235412,0.00059888,125.23,125.21,0.05945445]
[1766369235613,5.73184305,125.29,125.21,0.05945445]
[1766369235813,5.73184305,125.29,125.18,111.8642]
[1766369236017,12.91704305,125.29,125.2,7.19]
[1766369236218,5.73184305,125.28,125.2,7.19]
[1766369236514,0.05486792,125.25,125.23,0.05514418]
[1766369236914,5.73485526,125.3,125.23,0.05514418]
[1766369237118,7.1842,125.31,125.23,0.05514418]
[1766369237309,111.7538,125.31,125.21,3.32]
[1766369237619,111.7709,125.29,125.18,10.5111]
[1766369237814,111.7709,125.29,125.18,3.32]
[1766369237815,117.51082572,125.28,125.18,3.32]
[1766369238019,0.05846332,125.24,125.22,0.05503845]
[1766369238717,47.18,125.3,125.22,0.05503845]
[1766369238920,111.7477,125.32,125.19,111.8535]
[1766369238921,7.1841,125.31,125.21,7.1894]
[1766369239109,111.7598,125.3,125.19,3.32]
[1766369239724,0.03748491,125.26,125.23,0.0531622]
[1766369240025,111.7539,125.31,125.24,7.81487738]
[1766369240219,207.6533,125.36,125.25,7.81487738]
[1766369240417,12.91392714,125.33,125.26,7.81487738]
[1766369240730,95.94,125.36,125.27,7.81487738]
[1766369241024,5.73135464,125.35,125.3,0.0526457]
[1766369241222,143.12,125.36,125.31,7.738e-05]
[1766369241518,54.3607,125.37,125.3,0.0526457]
[1766369241714,5.73084279,125.36,125.3,0.0526457]
[1766369242108,12.91214279,125.36,125.3,0.0526457]
[1766369242306,158.8787,125.37,125.3,0.0526457]
[1766369242508,158.8587,125.37,125.25,3.32]
[1766369242922,7.1823,125.34,125.25,3.32]
[1766369243131,7.1823,125.34,125.22,47.18]
[1766369243132,223.4562,125.34,125.22,47.18]
[1766369243423,111.7553,125.31,125.22,47.18]
[1766369243622,0.05615582,125.29,125.21,3.32]
[1766369243924,111.7553,125.31,125.21,3.32]
[1766369244122,7.1849,125.3,125.21,3.32]
[1766369244320,111.7553,125.31,125.21,3.32]
[1766369244321,47.16,125.31,125.21,3.32]
[1766369244514,0.05325435,125.27,125.25,0.05430925]
[1766369244716,47.16,125.31,125.25,0.05430925]
[1766369244914,7.1836,125.32,125.25,0.05430925]
[1766369245314,47.16,125.33,125.25,0.05430925]
[1766369245510,47.16,125.33,125.23,7.1882]
[1766369245511,7.1825,125.34,125.24,3.32]
[1766369245713,7.1825,125.34,125.28,0.05592668]
[1766369245918,7.183,125.33,125.28,0.05592668]
[1766369246516,72.05702459,125.35,125.28,0.05592668]
[1766369246721,54.342,125.35,125.28,0.05592668]
[1766369247222,111.7046,125.37,125.28,0.05592668]
[1766369247421,47.16,125.37,125.31,0.05953903]
[1766369247827,111.6904,125.38,125.31,0.05953903]
[1766369248029,47.16,125.37,125.31,0.05953903]
[1766369248217,166.0306,125.38,125.31,0.05953903]
[1766369249025,7.1802,125.38,125.31,0.05953903]
[1766369249927,7.1808,125.37,125.31,0.05953903]
[1766369250126,7.1808,125.37,125.33,0.05613596]
[1766369250623,111.76652556,125.36,125.26,3.25]
[1766369250825,111.7184,125.35,125.23,50.41]
[1766369251314,111.7253,125.34,125.23,50.41]
[1766369251516,111.7184,125.35,125.23,50.41]
[1766369251714,7.1831,125.33,125.27,0.0552733]
[1766369251912,7.1831,125.33,125.23,57.5982]
[1766369252126,111.7281,125.34,125.23,57.5982]
[1766369252327,111.7182,125.35,125.24,3.25]
[1766369252725,111.7182,125.35,125.28,0.05291573]
[1766369253121,71.05,125.38,125.28,0.05291573]
[1766369253122,23.89,125.38,125.28,0.05291573]
[1766369253428,111.6861,125.39,125.32,0.05662471]
[1766369253821,111.6886,125.38,125.32,0.05662471]
[1766369254919,7.1801,125.38,125.32,0.05662471]
[1766369255523,111.6822,125.39,125.32,0.05662471]
[1766369255719,7.1821,125.35,125.27,3.25]
[1766369255924,111.7089,125.36,125.25,7.1871]
[1766369256226,111.7089,125.36,125.25,10.3771]
[1766369256428,111.7153,125.35,125.25,3.19]
[1766369256737,0.05361384,125.31,125.29,0.05310393]
[1766369257029,0.06062133,125.31,125.29,0.05310393]
[1766369257421,47.14,125.36,125.29,0.05310393]
[1766369257627,7.1825,125.34,125.29,0.05310393]
[1766369258335,158.8497,125.36,125.29,0.05310393]
[1766369258336,54.3215,125.36,125.29,0.05310393]
[1766369258723,7.1815,125.36,125.29,0.05310393]
[1766369258925,54.3215,125.36,125.29,0.05310393]
[1766369259327,158.8489,125.36,125.29,0.05310393]
[1766369259526,111.7261,125.34,125.29,0.00310393]
[1766369259725,7.1835,125.32,125.24,7.1878]
[1766369260226,111.7254,125.34,125.23,3.19]
[1766369260531,111.736,125.33,125.23,10.3781]
[1766369260728,0.05407213,125.29,125.27,0.05044774]
[1766369261030,0.05407213,125.29,125.23,3.19]
[1766369261334,111.82537213,125.29,125.16,115.0669]
[1766369261529,17.71502459,125.3,125.18,115.0524]
[1766369261728,47.14,125.29,125.19,3.19]
[1766369261929,64.85502459,125.3,125.19,3.19]
[1766369262135,0.05918696,125.26,125.23,0.05299508]
[1766369262433,47.14,125.3,125.23,0.05299508]
[1766369262623,47.14,125.32,125.23,0.05299508]
[1766369262819,47.14,125.32,125.22,7.1888]
[1766369263337,7.1847,125.3,125.21,3.19]
[1766369263527,0.04620354,125.27,125.24,0.05287376]
[1766369263719,111.7029,125.37,125.24,3.24287376]
[1766369263926,7.182,125.35,125.26,7.1866]
[1766369264124,57.44620517,125.38,125.27,3.19]
[1766369264635,7.1813,125.36,125.31,0.05731874]
[1766369265023,111.6974,125.37,125.31,0.05731874]
[1766369265835,7.1809,125.37,125.31,0.05731874]
[1766369266032,121.97510517,125.41,125.31,0.05731874]
[1766369266229,47.14,125.4,125.35,0.05674302]
[1766369266437,7.1797,125.39,125.29,7.1849]
[1766369266636,158.8131,125.4,125.29,7.1849]
[1766369266939,7.1803,125.38,125.29,7.1849]
[1766369267437,0.05674302,125.35,125.32,0.05837858]
[1766369268230,0.05674302,125.35,125.28,3.19]
[1766369269129,0.05674302,125.35,125.26,3.19]
[1766369269332,0.00078089,125.32,125.29,0.05102425]
[1766369269533,0.00078089,125.32,125.3,7.43927412]
[1766369269729,0.00078089,125.32,125.31,7.43927412]
[1766369269933,0.00078089,125.32,125.31,7.412e-05]
[1766369270340,0.00078089,125.32,125.29,0.05102425]
[1766369273332,4.03750716,125.32,125.23,3.19]
[1766369273547,4.03672627,125.32,125.23,3.19]
[1766369274041,7.1841,125.31,125.23,3.19]
[1766369274248,4.03672627,125.32,125.23,3.19]
[1766369274441,0.05545073,125.29,125.26,0.05388311]
[1766369274849,7.1824,125.34,125.26,0.05388311]
[1766369275044,7.1824,125.34,125.25,3.19]
[1766369275352,7.1824,125.34,125.25,10.3771]
[1766369275944,0.05951443,125.31,125.28,0.05837995]
[1766369276639,0.05951443,125.31,125.22,3.19]
[1766369276840,4.03672627,125.32,125.22,3.19]
[1766369277342,7.1841,125.31,125.22,3.19]
[1766369277742,0.05141816,125.28,125.25,0.05252919]
[1766369279152,7.23731816,125.28,125.25,0.00252919]
[1766369279552,0.05141816,125.28,125.19,3.19]
[1766369279740,115.80832627,125.29,125.19,3.19]
[1766369279943,4.03672627,125.29,125.2,3.19]
[1766369280149,9.6996824,125.29,125.2,3.19]
[1766369280350,16.8850824,125.29,125.21,3.19]
[1766369280552,0.0558536,125.26,125.24,0.05766704]
[1766369282350,118.81207617,125.36,125.24,3.24766704]
[1766369282550,115.75422627,125.35,125.24,3.19]
[1766369283054,11.21882627,125.35,125.26,7.1867]
[1766369283253,4.03672627,125.35,125.26,7.1867]
[1766369283556,0.05127971,125.32,125.29,0.05704415]
[1766369288853,0.00127971,125.32,125.29,0.05704415]
[1766369291561,0.00127971,125.32,125.29,3.51704415]
[1766369291753,111.6859,125.39,125.29,3.51704415]
[1766369291754,115.72262627,125.39,125.29,3.51704415]
[1766369291952,115.72262627,125.39,125.29,3.46]
[1766369292162,4.03672627,125.39,125.29,3.46]
[1766369292364,11.21622627,125.39,125.29,10.6449]
[1766369292554,11.21622627,125.39,125.3,3.46]
[1766369292865,0.06052481,125.36,125.33,0.05459144]
[1766369294259,0.06052481,125.36,125.27,3.46]
[1766369294460,5.65602094,125.36,125.27,3.46]
[1766369294658,5.65602094,125.36,125.28,3.46]
[1766369294659,121.40124721,125.36,125.28,3.46]
[1766369294862,115.74522627,125.36,125.28,3.46]
[1766369295062,4.03672627,125.36,125.28,3.46]
[1766369295265,0.05825936,125.33,125.31,0.06150043]
[1766369296069,51.17672627,125.39,125.31,0.06150043]
[1766369296371,51.17672627,125.39,125.28,3.46]
[1766369297162,0.05285791,125.35,125.32,0.05745336]
[1766369297866,7.23465791,125.35,125.28,3.46]
[1766369298058,0.05285791,125.35,125.28,3.46]
[1766369298465,0.05285791,125.35,125.24,3.46]
[1766369298757,0.05285791,125.35,125.28,0.05102769]
[1766369298758,0.05164142,125.31,125.28,0.05102769]
[1766369299165,9.6931924,125.36,125.28,3.51102769]
[1766369299370,4.03672627,125.36,125.28,3.46]
[1766369299765,158.8129,125.38,125.28,3.46]
[1766369299766,4.03672627,125.41,125.29,3.46]
[1766369299966,9.69410815,125.41,125.29,3.46]
[1766369300170,0.06022993,125.36,125.34,0.05677581]
[1766369300362,0.05354227,125.36,125.34,0.05677581]
[1766369301472,0.00354227,125.36,125.34,0.05677581]
[1766369302057,115.66742627,125.45,125.34,3.51677581]
[1766369302364,5.65677424,125.44,125.34,3.46]
[1766369303065,5.65677424,125.44,125.38,0.06082687]
[1766369303472,56.81350051,125.45,125.38,0.06082687]
[1766369303668,5.65677424,125.44,125.38,0.06082687]
[1766369303969,4.09337798,125.42,125.34,3.46]
[1766369304273,4.03672627,125.42,125.34,3.46]
[1766369304565,121.34387954,125.42,125.31,10.6435]
[1766369304867,115.69182627,125.42,125.31,10.6435]
[1766369305061,115.69182627,125.42,125.28,47.12]
[1766369305062,4.03672627,125.36,125.28,3.46]
[1766369305663,58.33692627,125.38,125.29,3.46]
[1766369305964,4.03672627,125.4,125.29,3.46]
[1766369306170,0.05578625,125.36,125.33,0.0556991]
[1766369306767,4.03672627,125.4,125.33,0.0556991]
[1766369307167,11.21592627,125.4,125.33,0.0556991]
[1766369307769,0.0010434,125.38,125.33,3.3556991]
[1766369307971,0.0010434,125.38,125.35,3.3]
[1766369308269,58.33462627,125.42,125.35,3.3]
[1766369308465,51.15672627,125.42,125.32,3.3]
[1766369308873,51.15672627,125.42,125.36,0.05092606]
[1766369309567,7.1786,125.41,125.36,0.05092606]
[1766369309967,51.15672627,125.42,125.36,0.00092606]
[1766369310172,115.71992627,125.39,125.29,3.3]
[1766369310374,111.6912,125.38,125.29,3.3]
[1766369311078,0.05233025,125.35,125.32,0.05897861]
[1766369312177,0.05233025,125.35,125.26,3.3]
[1766369312362,111.7182,125.35,125.26,3.3]
[1766369313170,0.05162571,125.32,125.29,0.05671642]
[1766369314376,7.23522571,125.32,125.26,3.3]
[1766369315379,7.23522571,125.32,125.28,0.05818194]
[1766369315771,0.05162571,125.32,125.28,0.05818194]
[1766369317383,0.00162571,125.32,125.28,3.39818194]
[1766369317574,4.03672627,125.39,125.29,3.34]
[1766369317778,342.00727617,125.44,125.31,3.34]
[1766369317779,4.03672627,125.42,125.31,3.34]
[1766369317983,4.03672627,125.42,125.33,3.34]
[1766369318188,7.1774,125.43,125.33,3.34]
[1766369318577,0.05180656,125.39,125.37,0.05085298]
[1766369319081,0.00180656,125.39,125.37,0.05085298]
[1766369319682,0.00180656,125.39,125.33,3.34]
[1766369320784,0.00180656,125.39,125.35,0.0526687]
[1766369322691,0.00180656,125.39,125.35,3.3926687]
[1766369323092,0.00180656,125.39,125.35,10.5740687]
[1766369323292,7.1762,125.45,125.35,3.3926687]
[1766369323488,7.1762,125.45,125.35,3.34]
[1766369323686,7.1767,125.44,125.35,3.34]
[1766369324292,53.67386743,125.46,125.35,3.34]
[1766369324487,0.05120677,125.41,125.38,0.05830847]
[1766369324690,0.05120677,125.41,125.38,0.06129199]
[1766369331703,0.05120677,125.41,125.27,118.33276743]
[1766369331704,0.05120677,125.41,125.31,3.34]
[1766369331904,111.6619,125.41,125.31,3.34]
[1766369332094,7.1801,125.38,125.31,3.34]
[1766369332695,0.05188605,125.36,125.33,0.05918728]
[1766369333404,0.05188605,125.36,125.28,3.34]
[1766369333608,7.1807,125.37,125.28,3.34]
[1766369333907,7.1798,125.39,125.28,3.34]
[1766369334201,743.4804,125.46,125.3,3.34]
[1766369334408,0.05582015,125.37,125.3,3.34]
[1766369334799,7.23642015,125.37,125.3,3.34]
[1766369335398,7.23642015,125.37,125.32,0.05086517]
[1766369335902,0.05582015,125.37,125.32,0.05086517]
[1766369338110,0.05582015,125.37,125.32,3.39086517]
[1766369338306,5.67109484,125.42,125.32,3.39086517]
[1766369338505,12.22496227,125.44,125.33,3.34]
[1766369339510,0.05142909,125.4,125.37,0.05679459]
[1766369340303,0.05142909,125.4,125.3,3.34]
[1766369340514,5.6713215,125.4,125.3,3.34]
[1766369340701,117.3461215,125.4,125.3,3.34]
[1766369341008,7.1806,125.37,125.3,3.34]
[1766369341212,0.05153601,125.35,125.32,0.05961571]
[1766369341809,118.32310344,125.35,125.24,3.34]
[1766369342002,5.66759437,125.34,125.24,3.34]
[1766369342193,6.55386743,125.34,125.24,3.34]
[1766369342505,47.12,125.36,125.25,3.34]
[1766369342811,0.05975642,125.32,125.29,0.05502169]
[1766369344313,0.05975642,125.32,125.25,3.34]
[1766369344605,7.24325642,125.32,125.25,3.34]
[1766369344811,0.05975642,125.32,125.22,10.5289]
[1766369345009,111.7358,125.33,125.22,10.5289]
[1766369345309,7.1842,125.31,125.22,10.5289]
[1766369345512,0.05742961,125.28,125.25,0.05586728]
[1766369348499,7.183,125.33,125.25,3.36586728]
[1766369348695,7.183,125.33,125.25,3.31]
[1766369348908,7.1835,125.32,125.22,10.4988]
[1766369349113,7.1835,125.32,125.23,3.31]
[1766369349302,118.27076743,125.35,125.23,3.31]
[1766369349503,0.05035025,125.3,125.27,0.05628023]
[1766369349708,0.05035025,125.3,125.27,0.06115484]
[1766369350212,6.55386743,125.37,125.27,3.37115484]
[1766369350404,111.6767,125.4,125.27,3.31]
[1766369350405,5.65066912,125.38,125.27,3.31]
[1766369350714,5.65196504,125.39,125.27,3.31]
[1766369350897,7.1802,125.38,125.3,3.31]
[1766369351301,111.6624,125.41,125.33,0.05684232]
[1766369351603,111.6624,125.41,125.3,3.31]
[1766369352303,0.05073345,125.37,125.34,0.0545515]
[1766369352605,0.05073345,125.37,125.3,3.31]
[1766369352918,0.05073345,125.37,125.31,3.31]
[1766369353506,0.05073345,125.37,125.33,0.0590278]
[1766369354011,0.05073345,125.37,125.28,10.4953]
[1766369354211,118.23616743,125.39,125.28,10.4953]
[1766369354509,118.23616743,125.39,125.29,3.31]
[1766369354807,7.1813,125.36,125.26,10.4966]
[1766369354999,0.05995103,125.32,125.3,0.05702009]
[1766369355605,13.73516743,125.36,125.3,0.05702009]
[1766369355806,7.1813,125.36,125.3,0.05702009]
[1766369356012,7.1803,125.38,125.3,0.05702009]
[1766369356205,7.1803,125.38,125.3,3.31]
[1766369356407,6.55386743,125.39,125.3,3.31]
[1766369356712,0.05939815,125.36,125.33,0.05063745]
[1766369357113,118.21396743,125.42,125.33,0.05063745]
[1766369357311,165.33396743,125.42,125.32,3.31]
[1766369357611,165.33396743,125.42,125.33,3.31]
[1766369357612,6.55386743,125.42,125.33,3.31]
[1766369358108,0.05707429,125.39,125.36,0.05412136]
[1766369359012,53.67386743,125.45,125.36,3.36412136]
[1766369359309,7.1769,125.44,125.36,3.31]
[1766369359506,6.55386743,125.45,125.36,10.4908]
[1766369359809,111.6266,125.45,125.33,3.31]
[1766369360001,0.05329804,125.4,125.38,0.05907822]
[1766369360205,0.05223387,125.4,125.38,0.05907822]
[1766369360807,6.55386743,125.45,125.38,0.05907822]
[1766369361014,47.12,125.44,125.38,0.05907822]
[1766369361717,6.55386743,125.47,125.38,3.36907822]
[1766369361913,0.05216047,125.44,125.41,0.05231117]
[1766369362108,7.1739,125.49,125.41,3.36231117]
[1766369362321,7.1739,125.49,125.37,111.6944]
[1766369362322,111.6021,125.48,125.37,3.31]
[1766369362524,118.15596743,125.48,125.37,3.31]
[1766369362716,7.1751,125.47,125.37,3.31]
[1766369363022,111.6182,125.46,125.37,3.31]
[1766369363223,0.05028412,125.43,125.4,0.06135067]
[1766369363612,0.05028412,125.43,125.32,158.8532]
[1766369363814,47.12,125.44,125.33,3.31]
[1766369364312,111.6439,125.43,125.34,3.31]
[1766369364624,0.05265502,125.4,125.37,0.05120472]
[1766369365509,0.05265502,125.4,125.31,3.31]
[1766369365709,47.12,125.39,125.31,3.31]
[1766369366511,0.05835305,125.36,125.34,0.06060958]
[1766369371017,111.6645,125.41,125.34,0.06060958]
[1766369371018,6.55386743,125.42,125.34,3.55060958]
[1766369371324,52.76906228,125.43,125.34,3.49]
[1766369371621,52.76906228,125.43,125.31,3.49]
[1766369371622,111.6616,125.41,125.31,3.49]
[1766369371821,118.22826743,125.4,125.28,3.49]
[1766369372218,0.05372208,125.35,125.33,0.05225519]
[1766369372414,0.06063062,125.35,125.33,0.05225519]
[1766369372922,0.06063062,125.35,125.28,3.49]
[1766369373128,7.24243062,125.35,125.28,3.49]
[1766369373918,7.24243062,125.35,125.3,0.05481832]
[1766369374518,0.06063062,125.35,125.3,0.05481832]
[1766369378824,0.06063062,125.35,125.3,3.41481832]
[1766369379026,0.06063062,125.35,125.3,0.05481832]
[1766369381429,0.00063062,125.35,125.3,3.41481832]
[1766369385632,0.00063062,125.35,125.3,0.05481832]
[1766369389622,7.1823,125.34,125.3,0.05481832]
[1766369393341,11.22048912,125.34,125.26,3.36]
[1766369393730,11.22048912,125.34,125.27,3.36]
[1766369394126,7.1823,125.34,125.27,3.36]
[1766369394332,0.05280931,125.32,125.29,0.05977892]
[1766369397638,0.00280931,125.32,125.29,3.41977892]
[1766369398843,0.00280931,125.32,125.29,0.05977892]
[1766369400448,0.00280931,125.32,125.24,3.36]
[1766369400637,4.03818912,125.33,125.24,3.36]
[1766369400947,115.77618912,125.33,125.24,3.36]
[1766369401151,4.03818912,125.27,125.21,3.36]
[1766369401345,4.03818912,125.27,125.18,3.36]
[1766369401544,0.00086887,125.25,125.23,0.05763223]
[1766369401756,47.12,125.28,125.2,3.36]
[1766369402043,4.03818912,125.29,125.2,3.36]
[1766369402247,47.12,125.28,125.2,3.36]
[1766369402638,0.05138128,125.25,125.16,3.36]
[1766369402844,4.03818912,125.26,125.16,3.36]
[1766369403439,11.22518912,125.26,125.18,3.36]
[1766369403644,0.05944523,125.23,125.21,0.05432487]
[1766369403958,47.14,125.27,125.18,3.36]
[1766369404142,47.14,125.27,125.19,3.36]
[1766369404648,4.03818912,125.29,125.2,3.36]
[1766369404851,11.22178912,125.32,125.21,3.36]
[1766369405047,0.00111244,125.26,125.23,3.41467772]
[1766369405244,51.17818912,125.32,125.23,3.36]
[1766369406050,0.05482462,125.29,125.26,0.05073935]
[1766369406242,0.05482462,125.29,125.23,3.36]
[1766369406552,4.09301374,125.29,125.2,3.3]
[1766369406755,4.03818912,125.29,125.2,3.3]
[1766369407142,4.03818912,125.29,125.2,10.49]
[1766369407456,0.05375064,125.26,125.23,0.05444184]
[1766369407955,0.00375064,125.26,125.23,0.05444184]
[1766369408858,0.00375064,125.26,125.19,3.3]
[1766369409049,4.03818912,125.28,125.19,3.3]
[1766369410058,0.05703214,125.25,125.22,0.05790554]
[1766369410961,47.14,125.3,125.22,3.35790554]
[1766369411158,47.14,125.3,125.22,3.3]
[1766369411963,0.05172091,125.27,125.25,0.05909193]